{"text_format":"1","workbook":"xlsx","n_sheets":2,"sheets":["Übersicht","Berechnungen"],"not_rendered":{"charts":0,"images":0,"macros":1,"external_links":0,"defined_names":1,"comments":0,"pivot_tables":0},"unopened":[],"bounds":{"document_bytes":16777216,"sheet_cells":100000,"rows_first":2000,"rows_last":500,"rows_between":2000,"halvings":0,"cell_chars":16384,"cell_head_chars":4096},"cells_cut":0,"cells_raw":0,"read":"whole","date_system":"1900"}

{"sheet":"Übersicht","index":0,"n_rows":44,"n_cols":8,"rows_kept":44,"cut":false,"hidden":false,"merged":[[1,1,1,3],[1,6,1,8]]}
[]
[null,"PO 2010-V2013",null,null,null,null,"PO 2023"]
[null,null,"Modul","CP",null,null,"Modul","CP"]
[null,null,"Kernstudium",{"$f":"IF(SUM(D5,D9,D15,D21,D26)>0,SUM(D5,D9,D15,D21,D26),\"\")","v":""},null,null,"Kernstudium",{"$f":"IF(SUM(H5,H9,H16,H21,H26)>0,SUM(H5,H9,H16,H21,H26),\"\")","v":""}]
[null,null,"Pflichtbereich I: Mathematische Grundlagen",{"$f":"IF(SUM(D6:D8)>0,SUM(D6:D8),\"\")","v":""},null,null,"Pflichtbereich I: Mathematische Grundlagen",{"$f":"IF(SUM(H6:H8)>0,SUM(H6:H8),\"\")","v":""}]
[null,null,"Lineare Algebra für Informatiker und Wirtschaftsinformatiker",{"$f":"IF(Berechnungen!A2,9,\"\")","v":""},null,null,{"$f":"IF(Berechnungen!D3,\"Lineare Algebra für Informatiker und Wirtschaftsinformatiker\",\"\")","v":""},{"$f":"IF(Berechnungen!D3,9,\"\")","v":""}]
[null,null,"Analysis für Informatiker und Wirtschaftsinformatiker ",{"$f":"IF(Berechnungen!A3,9,\"\")","v":""},null,null,{"$f":"IF(Berechnungen!D4,\"Analysis für Informatiker und Wirtschaftsinformatiker \",\"\")","v":""},{"$f":"IF(Berechnungen!D4,9,\"\")","v":""}]
[null,null,"Induktive Statistik",{"$f":"IF(Berechnungen!A4,6,\"\")","v":""},null,null,{"$f":"IF(Berechnungen!D5,\"Induktive Statistik\",\"\")","v":""},{"$f":"IF(Berechnungen!D5,6,\"\")","v":""}]
[null,null,"Pflichtbereich II: Informatik",{"$f":"IF(SUM(D10:D14)>0,SUM(D10:D14),\"\")","v":""},null,null,"Pflichtbereich II: Programmierung und Entwicklung",{"$f":"IF(SUM(H10:H15)>0,SUM(H10:H15),\"\")","v":""}]
[null,null,"Programmierung",{"$f":"IF(Berechnungen!A5,9,\"\")","v":""},null,null,{"$f":"IF(Berechnungen!H30,\"Einführung in die Programmierung\",\"\")","v":""},{"$f":"IF(Berechnungen!H30,6,\"\")","v":""}]
[null,null,"Software Engineering",{"$f":"IF(Berechnungen!A6,6,\"\")","v":""},null,null,{"$f":"IF(OR(Berechnungen!D6,Berechnungen!P33),\"Einführung in das Software Engineering\",\"\")","v":""},{"$f":"IF(OR(Berechnungen!D6,Berechnungen!P33),6,\"\")","v":""}]
[null,null,"Datenbankmanagementsysteme",{"$f":"IF(Berechnungen!A7,9,\"\")","v":""},null,null,{"$f":"IF(OR(Berechnungen!H34,Berechnungen!P32),\"Datenstrukturen und Algorithmen\",\"\")","v":""},{"$f":"IF(OR(Berechnungen!H34,Berechnungen!P32),6,\"\")","v":""}]
[null,null,"Modelle der Informatik",{"$f":"IF(Berechnungen!A8,9,\"\")","v":""},null,null,{"$f":"IF(Berechnungen!H33,\"Datenbankmanagementsysteme\",\"\")","v":""},{"$f":"IF(Berechnungen!H33,6,\"\")","v":""}]
[null,null,"Software Entwicklung und Programmierung (SEP)",{"$f":"IF(Berechnungen!A9,6,\"\")","v":""},null,null,{"$f":"IF(Berechnungen!H31,\"Modelle der Informatik\",\"\")","v":""},{"$f":"IF(Berechnungen!H31,6,\"\")","v":""}]
[null,null,"Pflichtbereich III: Wirtschaftsinformatik",{"$f":"IF(SUM(D16:D20)>0,SUM(D16:D20),\"\")","v":""},null,null,{"$f":"IF(Berechnungen!H32,\"Software Entwicklung und Programmierung (SEP)\",\"\")","v":""},{"$f":"IF(Berechnungen!H32,9,\"\")","v":""}]
[null,null,"Einführung in die Wirtschaftsinformatik ",{"$f":"IF(Berechnungen!A10,6,\"\")","v":""},null,null,"Pflichtbereich III: Wirtschaftsinformatik",{"$f":"IF(SUM(H17:H20)>0,SUM(H17:H20),\"\")","v":""}]
[null,null,"Anwendungsgebiete der WiInf: Enterprise Systems",{"$f":"IF(Berechnungen!A11,3,\"\")","v":""},null,null,{"$f":"IF(Berechnungen!D7,\"Einführung in die Wirtschaftsinformatik\",\"\")","v":""},{"$f":"IF(Berechnungen!D7,6,\"\")","v":""}]
[null,null,"Anwendungsgebiete der WiInf: Digital Business-Grundlagen",{"$f":"IF(Berechnungen!A12,3,\"\")","v":""},null,null,{"$f":"IF(OR(Berechnungen!L26,Berechnungen!P37),\"WP: Enterprise Systems\",IF(OR(Berechnungen!L27,Berechnungen!P38),\"WP: Digital Business Grundlagen\",\"\"))","v":""},{"$f":"IF(OR(Berechnungen!L26,Berechnungen!P37,Berechnungen!L27,Berechnungen!P38),6,\"\")","v":""}]
[null,null,"Unternehmensmodellierung 1 ",{"$f":"IF(Berechnungen!A13,6,\"\")","v":""},null,null,{"$f":"IF(Berechnungen!D8,\"Unternehmensmodellierung 1\",\"\")","v":""},{"$f":"IF(Berechnungen!D8,6,\"\")","v":""}]
[null,null,"IT-Projektmanagement",{"$f":"IF(Berechnungen!A14,3,\"\")","v":""},null,null,{"$f":"IF(Berechnungen!D9,\"IT-Projektmanagement\",\"\")","v":""},{"$f":"IF(Berechnungen!D9,3,\"\")","v":""}]
[null,null,"Pflichtbereich IV: Betriebswirtschaftslehre",{"$f":"IF(SUM(D22:D25)>0,SUM(D22:D25),\"\")","v":""},null,null,"Pflichtbereich IV: Betriebswirtschaftslehre",{"$f":"IF(SUM(H22:H25)>0,SUM(H22:H25),\"\")","v":""}]
[null,null,"Einführung in die Betriebswirtschaftslehre ",{"$f":"IF(Berechnungen!A15,6,\"\")","v":""},null,null,{"$f":"IF(Berechnungen!D10,\"Einführung in die Betriebswirtschaftslehre \",\"\")","v":""},{"$f":"IF(Berechnungen!D10,6,\"\")","v":""}]
[null,null,"Einführung in die Volkswirtschaftslehre ",{"$f":"IF(Berechnungen!A16,6,\"\")","v":""},null,null,{"$f":"IF(Berechnungen!D11,\"Einführung in die Volkswirtschaftslehre\",\"\")","v":""},{"$f":"IF(Berechnungen!D11,6,\"\")","v":""}]
[null,null,"Investition und Finanzierung",{"$f":"IF(Berechnungen!A17,6,\"\")","v":""},null,null,{"$f":"IF(Berechnungen!D12,\"Investition und Finanzierung\",\"\")","v":""},{"$f":"IF(Berechnungen!D12,6,\"\")","v":""}]
[null,null,"Internes Rechnungswesen",{"$f":"IF(Berechnungen!A18,6,\"\")","v":""},null,null,{"$f":"IF(Berechnungen!D13,\"Internes Rechnungswesen\",\"\")","v":""},{"$f":"IF(Berechnungen!D13,6,\"\")","v":""}]
[null,null,"Wahlpflichtbereich: BWL und VWL/Recht und Quantitative Methoden",{"$f":"IF(SUM(D27:D28)>0,SUM(D27:D28),\"\")","v":""},null,null,"Wahlpflichtbereich: BWL und VWL/Recht und Quantitative Methoden",{"$f":"IF(SUM(H27:H28)>0,SUM(H27:H28),\"\")","v":""}]
[null,null,"WP I",{"$f":"IF(Berechnungen!A19,6,\"\")","v":""},null,null,{"$f":"IF(Berechnungen!D14,\"WP I\",\"\")","v":""},{"$f":"IF(Berechnungen!D14,6,\"\")","v":""}]
[null,null,"WP II",{"$f":"IF(Berechnungen!A20,6,\"\")","v":""},null,null,{"$f":"IF(Berechnungen!D15,\"WP II\",\"\")","v":""},{"$f":"IF(Berechnungen!D15,6,\"\")","v":""}]
[null,null,"Vertiefungsstudium",{"$f":"IF(SUM(D30,D32,D37,D40:D43)>0,SUM(D30,D32,D37,D40:D43),\"\")","v":""},null,null,"Vertiefungsstudium",{"$f":"IF(SUM(H30,H32,H36,H39:H42)>0,SUM(H30,H32,H36,H39:H42),\"\")","v":""}]
[null,null,"Pflichtbereich: Wirtschaftsinformatik",{"$f":"IF(D31>0,D31,\"\")","v":""},null,null,"Pflichtbereich: Wirtschaftsinformatik",{"$f":"IF(D31>0,D31,\"\")","v":""}]
[null,null,"IT-Management",{"$f":"IF(Berechnungen!A21,6,\"\")","v":""},null," ",{"$f":"IF(Berechnungen!D16,\"IT-Management\",\"\")","v":""},{"$f":"IF(Berechnungen!D16,6,\"\")","v":""}]
[null," ","Wahlpflichtbereich",{"$f":"IF(SUM(D34:D36)>0,SUM(D34:D36),\"\")","v":""},null,null,"Wahlpflichtbereich: Wirtschaftsinformatik und Informatik",{"$f":"IF(SUM(H33:H35)>0,SUM(H33:H35),\"\")","v":""}]
[null,null,"Vertiefungsrichtung",null,null,null,{"$f":"IF(OR(Berechnungen!D17,Berechnungen!P34),\"WP I\",\"\")","v":""},{"$f":"IF(OR(Berechnungen!D17,Berechnungen!P34),6,\"\")","v":""}]
[null,null,"WP I",{"$f":"IF(Berechnungen!A22,6,\"\")","v":""},null,null,{"$f":"IF(OR(Berechnungen!D18,Berechnungen!P35),\"WP II\",\"\")","v":""},{"$f":"IF(OR(Berechnungen!D18,Berechnungen!P35),6,\"\")","v":""}]
[null,null,"WP II",{"$f":"IF(Berechnungen!A23,6,\"\")","v":""},null,null,{"$f":"IF(OR(Berechnungen!D19,Berechnungen!P36),\"WP III\",\"\")","v":""},{"$f":"IF(OR(Berechnungen!D19,Berechnungen!P36),6,\"\")","v":""}]
[null,null,"WP III",{"$f":"IF(Berechnungen!A24,6,\"\")","v":""},null,null,"E1: Schlüsselqualifikationen (Insgesamt 3 CP + 3 CP)",{"$f":"IF(SUM(H37:H38)>0,SUM(H37:H38),\"\")","v":""}]
[null,null,"E1: Schlüsselqualifikationen (Insgesamt 3 CP + 3 CP)",{"$f":"IF(SUM(D38:D39)>0,SUM(D38:D39),\"\")","v":""},null,null,{"$f":"IF(Berechnungen!D20,\"E1: Schlüsselqualifikationen: Englisch (3 CP)\",\"\")","v":""},{"$f":"IF(Berechnungen!D20,3,\"\")","v":""}]
[null,null,"E1: Schlüsselqualifikationen: Englisch (3 CP)",{"$f":"IF(Berechnungen!A25,3,\"\")","v":""},null,null,{"$f":"IF(Berechnungen!P31,\"E1: Schlüsselqualifikationen (3 CP)\",\"\")","v":""},{"$f":"IF(Berechnungen!P31,3,\"\")","v":""}]
[null,null,"E1: Schlüsselqualifikationen (3 CP)",{"$f":"IF(Berechnungen!A26,3,\"\")","v":""},null,null,{"$f":"IF(Berechnungen!D21,\"E3: Studium Liberale (Insgesamt 6 CP)\",\"\")","v":""},{"$f":"IF(Berechnungen!D21,6,\"\")","v":""}]
[null,null,"E3: Studium Liberale (Insgesamt 6 CP)",{"$f":"IF(Berechnungen!A27,6,\"\")","v":""},null,null,{"$f":"IF(Berechnungen!D22,\"Seminar\",\"\")","v":""},{"$f":"IF(Berechnungen!D22,6,\"\")","v":""}]
[null,null,"Seminar",{"$f":"IF(Berechnungen!A28,6,\"\")","v":""},null,null,{"$f":"IF(Berechnungen!D23,\"Bachelorprojekt\",\"\")","v":""},{"$f":"IF(Berechnungen!D23,6,\"\")","v":""}]
[null,null,"Bachelorprojekt",{"$f":"IF(Berechnungen!A29,6,\"\")","v":""},null,null,{"$f":"IF(Berechnungen!D24,\"Bachelorarbeit\",\"\")","v":""},{"$f":"IF(Berechnungen!D24,12,\"\")","v":""}]
[null,null,"Bachelorarbeit",{"$f":"IF(Berechnungen!A30,12,\"\")","v":""},null,null,"CP Gesamt:",{"$f":"SUM(H4,H29)","v":0}]
[null,null,"CP Gesamt:",{"$f":"SUM(D4,D29)","v":0},null,null,null,{"$f":"IF(Berechnungen!P39,Berechnungen!Q39,IF(Berechnungen!P40,Berechnungen!Q40,IF(Berechnungen!P41,Berechnungen!Q41,IF(Berechnungen!P42,Berechnungen!Q42,\"\"))))","v":""}]

{"sheet":"Berechnungen","index":1,"n_rows":42,"n_cols":18,"rows_kept":42,"cut":false,"hidden":false,"merged":[[0,0,0,1],[0,3,0,5],[0,7,0,9],[10,7,10,9],[0,11,0,13],[0,15,0,17],[29,16,29,17],[27,7,27,9],[28,8,28,9],[31,8,31,9],[18,7,18,9],[24,12,24,13]]}
["bestandene Module (PO2010-V2013)",null,null,"1. \"problemlose\" Umrechnungen ",null,null,null,"2. \"CP\" Umrechnungen Informatik",null,null,null,"3. \"CP\" Umrechnungen WiInf ",null,null,null,"4. \"CP\" Schlüsselquali und Überschuss"]
[false,"Lineare Algebra für Informatiker und Wirtschaftsinformatiker",null,"Formel","Module PO2010-V2013","Module PO 2023",null,"bestanden"," Module PO2010-V2013","Abkürzung",null,"bestanden"," Module PO2010-V2013","Abkürzung",null,"bestanden"," Module PO2010-V2013","Abkürzung"]
[false,"Analysis für Informatiker und Wirtschaftsinformatiker",null,{"$f":"A2","v":false},"LinA","LinA",null,{"$f":"A5","v":false},"Programmierung","Prog",null,{"$f":"A11","v":false},"Anwend. der WiInf: Enterprise Systems","AdW:ES",null,{"$f":"A26","v":false},"E1: Schlüsselqualifikationen","E1"]
[false,"Induktive Statistik",null,{"$f":"A3","v":false},"AnA","AnA",null,{"$f":"A7","v":false},"Datenbankmanagementsysteme","DBMS",null,{"$f":"A12","v":false},"Anwend. der WiInf: Digital Business-Grundlagen","AdW:DBG",null,{"$f":"H35","v":false},"?DuA?"]
[false,"Programmierung",null,false,"Induktive Statistik","Induktive Statistik",null,{"$f":"A8","v":false},"Modelle der Informatik","MDI",null,null,null,null,null,{"$f":"H36","v":false},"?SE?"]
[false,"Software Engineering",null,{"$f":"A6","v":false},"Software Engineering","Einführung in das Software Engineering",null,false,"Software Entwicklung und Programmierung (SEP)","SEP",null,null,"Module PO2023",null,null,false,"3 CP Überschuss Inf."]
[false,"Datenbankmanagementsysteme",null,{"$f":"A10","v":false},"Einführung in die WiInf","Einführung in die WiInf",null,null,null,null,null,null,"Enterprise Systems","DuA",null,{"$f":"L28","v":false},"?ES?"]
[false,"Modelle der Informatik",null,{"$f":"A13","v":false},"Unternehmensmodellierung 1 ","Unternehmensmodellierung 1 ",null,null,"Module PO2023",null,null,null,"Digital Business Grundlagen","DBG",null,{"$f":"L29","v":false},"?DBG?"]
[false,"Software Entwicklung und Programmierung (SEP)",null,{"$f":"A14","v":false},"IT-Projektmanagement","IT-Projektmanagement",null,null,"Datenstrukturen und Algorithmen","DuA",null,null,null,null,null,{"$f":"L30","v":false},"3CP Überschuss Inf. Benutzt"]
[false,"Einführung in die Wirtschaftsinformatik ",null,{"$f":"A15","v":false},"Einführung in die BWL","Einführung in die BWL",null,null,null,null,null,null,"3.1 \"3CP\" Überschuss in Informatik"]
[false,"Anwendungsgebiete der WiInf: Enterprise Systems",null,{"$f":"A16","v":false},"Einführung in die VWL","Einführung in die VWL",null,"2.1 \"ohne\" Probleme",null,null,null,"Formel","Module PO2010-V2013","Module PO 2023",null,null,"4.1 \"keine\" CP benötigt"]
[false,"Anwendungsgebiete der WiInf: Digital Business-Grundlagen",null,false,"Investition und Finanzierung","Investition und Finanzierung",null,"Formel","Module PO2010-V2013","Module PO 2023",null,{"$f":"AND(L3,NOT(L4),H37)","v":false},"AdW:ES + (3CP Überschuss Inf.)","ES",null,"Formel","Module PO2010-V2013","Module PO 2023"]
[false,"Unternehmensmodellierung 1 ",null,{"$f":"A18","v":false},"Internes Rechnungswesen","Internes Rechnungswesen",null,{"$f":"AND(H3,H6,NOT(OR(H4,H5)))","v":false},"Prog+SEP","Prog+SEP",null,{"$f":"AND(L4,NOT(L3),H37)","v":false},"AdW:DBG + (3CP Überschuss Inf.)","DBG",null,{"$f":"AND(P3,OR(AND(P6,P9),NOT(OR(P4:P9))))","v":false},"E1","E1"]
[false,"IT-Projektmanagement",null,{"$f":"A19","v":false},"WP I","WPI",null,{"$f":"AND(H3,H6,H4,H5)","v":false},"Prog+SEP+MDI+DBMS","Prog+SEP+MDI+DBMS+DuA"]
[false,"Einführung in die Betriebswirtschaftslehre ",null,{"$f":"A20","v":false},"WP II","WPII",null,{"$f":"AND(H3,H5,NOT(OR(H4,H6)))","v":false},"Prog+MDI","Prog+MDI+DuA",null,null,"3.3 \"ohne\" Überschuss in Informatik",null,null,null,"4.2 \"3CP\" Überschuss Inf (nicht benötigt in WiInf)"]
[false,"Einführung in die Volkswirtschaftslehre ",null,{"$f":"A21","v":false},"IT-Management","IT-Management",null,{"$f":"AND(H3,H4,NOT(OR(H5,H6)))","v":false},"Prog+DBMS","Prog+DBMS+DuA",null,"Formel","Module PO2010-V2013","Module PO 2023",null,"Formel","Module PO2010-V2013","Module PO 2023"]
[false,"Investition und Finanzierung",null,{"$f":"A22","v":false},"WP I","WP I",null,{"$f":"AND(H4,H5,NOT(OR(H3,H6)))","v":false},"MDI+DBMS","MDI+DBMS+DuA",null,{"$f":"AND(L3,NOT(L4),NOT(H42))","v":false},"AdW:ES","?ES?",null,{"$f":"AND(P3,P6,P4,NOT(P5),NOT(P9))","v":false},"E1 + ?DuA?","DuA"]
[false,"Internes Rechnungswesen",null,{"$f":"A23","v":false},"WP II","WP II",null,null,null,null,null,{"$f":"AND(L4,NOT(L3),NOT(H42))","v":false},"AdW:DBG","?DBG?",null,{"$f":"AND(P3,P6,P5,NOT(P4),NOT(P9))","v":false},"E1 + ?SE?","ESE"]
[false,"WP I",null,false,"WP III","WP III",null,"2.2 \"3 Cp benötigt\"",null,null,null,null,null,null,null,{"$f":"AND(NOT(P3),P6,P4,NOT(P5),NOT(P9))","v":false},"?DuA?","?DuA?"]
[false,"WP II",null,false,"E1: Schlüsselquali.: Englisch","E1: Schlüsselquali.: Englisch",null,"Formel","Module PO2010-V2013","Module PO 2023",null,null,"3.4 \"ohne\" Überschuss in Informatik",null,null,{"$f":"AND(NOT(P3),P6,P5,NOT(P4),NOT(P9))","v":false},"?SE?","?SE?"]
[false,"IT-Management",null,{"$f":"A27","v":false},"E3: Studium Liberale","E3: Studium Liberale",null,{"$f":"AND(H3,H5,H6,NOT(OR(H4)))","v":false},"Prog+SEP+MDI","Prog+SEP+MDI+?DuA?",null,"Formel","Module PO2010-V2013","Module PO 2023"]
[false,"WP I",null,{"$f":"A28","v":false},"Seminar","Seminar",null,{"$f":"AND(H3,H4,H6,NOT(OR(H5)))","v":false},"Prog+SEP+DBMS","Prog+SEP+DBMS+?DuA?",null,{"$f":"AND(L3,L4)","v":false},"AdW:ES + AdW:DBG","ES",null,null,"4.3 \"3CP\" Überschuss WiInf"]
[false,"WP II",null,{"$f":"A29","v":false},"Bachelorprojekt","Bachelorprojekt",null,{"$f":"AND(H3,NOT(OR(H4,H5,H6)))","v":false},"Prog","Prog+?DuA?",null,null,null,null,null,"Formel","Module PO2010-V2013","Module PO 2023"]
[false,"WP III",null,{"$f":"A30","v":false},"Bachelorarbeit","Bachelorarbeit",null,{"$f":"AND(H5,NOT(OR(H3,H4,H6)))","v":false},"MDI","MDI+?DuA?",null,null,"3.3 Ergebnis",null,null,{"$f":"AND(P3,NOT(P6),P7,NOT(P8))","v":false},"E1 + ?ES?","ES"]
[false,"E1: Schlüsselqualifikationen: Englisch",null,null,null,null,null,{"$f":"AND(H4,NOT(OR(H3,H5,H6)))","v":false},"DBMS","DBMS+?DuA?",null,"angerechnet","Modul PO 2023",null,null,{"$f":"AND(P3,NOT(P6),P8,NOT(P7))","v":false},"E1 + ?DBG?","DBG"]
[false,"E1: Schlüsselqualifikationen",null,null,null,null,null,{"$f":"AND(H3,H4,H5,NOT(OR(H6)))","v":false},"Prog+MDI+DBMS","Prog+MDI+DBMS+DuA+?SE?",null,{"$f":"OR(L12,L22)","v":false},"Enterprise Systems",null,null,{"$f":"AND(NOT(P3),NOT(P6),P7,NOT(P8))","v":false},"?ES?","?ES?"]
[false,"E3: Studium Liberale",null,null,null,null,null,null,null,null,null,{"$f":"OR(L13)","v":false},"Digital Business Grundlagen",null,null,{"$f":"AND(NOT(P3),NOT(P6),P8,NOT(P7))","v":false},"?DBG?","?DBG?"]
[false,"Seminar",null,null,null,null,null,"2.3 Ergebnis",null,null,null,{"$f":"OR(L17)","v":false},"?ES?"]
[false,"Bachelorprojekt",null,null,null,null,null,"angerechnet","Modul PO 2023",null,null,{"$f":"OR(L18)","v":false},"?DBG?",null,null,null,"4.4 Ergebnis "]
[false,"Bachelorarbeit",null,null,null,null,null,{"$f":"OR(H13:H16,H21:H23,H26)","v":false},"Einführung in die Programmierung",null,null,{"$f":"OR(L12,L13)","v":false},"3CP Überschuss Inf. Benutzt",null,null,"angerechnet","Modul PO 2023"]
[null,null,null,null,null,null,null,{"$f":"OR(H14,H15,H17,H21,H24,H26)","v":false},"Modelle der Informatik",null,null,null,null,null,null,{"$f":"OR(P13)","v":false},"E1: Schlüsselqualifikationen","E1"]
[null,null,null,null,null,null,null,{"$f":"OR(H13,H14,H21,H22)","v":false},"Software Entwicklung und  Programmierung (SEP)",null,null,null,null,null,null,{"$f":"OR(P17)","v":false},"Datenstrukturen und Algorithmen","DuA"]
[null,"Vertiefungsrichtung",null,null,null,null,null,{"$f":"OR(H14,H16,H17,H22,H25,H26)","v":false},"Datenbankmanagementsysteme",null,null,null,null,null,null,{"$f":"AND(P18,NOT(D6))","v":false},"Einführung in das Software Engineering","ESE"]
[null,"Vertiefung: Modellierung und Realisierung betrieblicher Informationssysteme",null,null,null,null,null,{"$f":"OR(H14:H17,H26)","v":false},"Datenstrukturen und Algorithmen",null,null,null,null,null,null,{"$f":"AND(P18,D6,NOT(D17))","v":false},"WP I"]
[null,"Vertiefung: E-Entrepreneurship und IT-Management",null,null,null,null,null,{"$f":"OR(H21:H25)","v":false},"?DuA?",null,null,null,null,null,null,{"$f":"AND(P18,D6,D17,NOT(D18))","v":false},"WP II"]
[null,"Vertiefung: Technik und Sicherheit betrieblicher Kommunikationssysteme",null,null,null,null,null,{"$f":"H26","v":false},"?SE?",null,null,null,null,null,null,{"$f":"AND(P18,D6,D17,D18,NOT(D19))","v":false},"WP III"]
[null,null,null,null,null,null,null,{"$f":"OR(H35,H36)","v":false},"3 CP Überschuss",null,null,null,null,null,null,{"$f":"OR(P24)","v":false},"Enterprise Systems","ES"]
[null,null,null,null,null,null,null,null,null,null,null,null,null,null,null,{"$f":"OR(P25)","v":false},"Digital Business Grundlagen","DBG"]
[null,null,null,null,null,null,null,null,null,null,null,null,null,null,null,{"$f":"OR(P19)","v":false},"+3CP (mit noch zu erbringender 3CP Schlüsselqualifikation anzurechnen auf Datenstrukturen und Algorithmen)"]
[null,null,null,null,null,null,null,null,null,null,null,null,null,null,null,{"$f":"OR(P20)","v":false},"+3CP (mit noch zu erbringender 3CP Schlüsselqualifikation anzurechnen auf Einführung in das Software Engineering oder falls bereits bestanden auf den WP-Bereich)"]
[null,null,null,null,null,null,null,null,null,null,null,null,null,null,null,{"$f":"OR(P26)","v":false},"+3CP (mit noch zu erbringender 3CP Schlüsselqualifikation anzurechnen auf Enterprise Systems)"]
[null,null,null,null,null,null,null,null,null,null,null,null,null,null,null,{"$f":"OR(P27)","v":false},"+3CP (mit noch zu erbringender 3CP Schlüsselqualifikation anzurechnen auf Digital Business Grundlagen)"]